fUSD/lending_fUSD_20240213
["ID","MTS","AMOUNT","RATE_DAILY","PERIOD"]
[313938062,1707844237562,-500.0,0.00023887,2]
[313938063,1707844237576,-714.88,0.00023911,2]
[313938064,1707844237585,-269.39,0.00023956,2]
[313938065,1707844237594,-712.81,0.00023982,2]
[313938066,1707844237602,-378.88,0.00023994,2]
[313938067,1707844237611,-250.0,0.00023994,2]
[313938068,1707844237621,-719.78,0.00024065,2]
[313938069,1707844237630,-499.99,0.00024065,2]
[313938070,1707844237640,-150.0,0.00024218,2]
[313938071,1707844237650,-517.4,0.00024384,2]
[313938072,1707844237659,-210.0,0.00024386,2]
[313938073,1707844237668,-736.95,0.0002455,2]
[313938074,1707844237678,-714.34,0.000246,2]
[313938075,1707844237687,-726.22,0.000246,2]
[313938076,1707844237696,-710.62,0.000246,2]
[313938077,1707844237705,-725.72,0.000246,2]
[313938078,1707844237714,-714.21,0.000246,2]
[313938079,1707844237724,-726.2,0.000246,2]
[313938080,1707844237733,-730.51,0.00024603,2]
[313938081,1707844237742,-250.0,0.00024658,2]
[313938082,1707844237751,-555.61,0.00024746,2]
[313938083,1707844237760,-227.42786088,0.00024807,2]
[313938084,1707844237769,-1455.0,0.00024808,2]
[313938085,1707844237779,-9503.85083374,0.00024808,2]
[313938086,1707844237788,-48863.73431229,0.00024809,2]
[313938087,1707844237797,-552.03134813,0.00024809,2]
[313938088,1707844237806,-1000.0,0.00024841,2]
[313938089,1707844237815,-500.0,0.00024886,2]
[313938090,1707844237824,-200.0,0.00024895,2]
[313938091,1707844237834,-730.44,0.00024905,2]
[313938092,1707844237843,-701.2500694,0.00024907,2]
[313938093,1707844237852,-1000.0,0.00024907,2]
[313938094,1707844237862,-726.78,0.00024908,2]
[313938095,1707844237871,-710.54,0.00024908,2]
[313938096,1707844237881,-201094.49230307,0.00024908,2]
[313938097,1707844237892,-2032.23,0.00024909,2]
[313938098,1707844237902,-710.51,0.00024909,2]
[313938099,1707844237910,-724.69,0.00024911,2]
[313938100,1707844237919,-709.87,0.00024912,2]
[313938101,1707844237928,-736.49,0.00024912,2]
[313938102,1707844237938,-250.0,0.00024946,2]
[313938104,1707844237947,-300.0,0.00025098,2]
[313938106,1707844237956,-269.39,0.00025154,2]
[313938108,1707844237965,-200.0,0.00025165,2]
[313938110,1707844237974,-2000.0,0.00025175,2]
[313938112,1707844237982,-1441.77,0.00025264,2]
[313938114,1707844237992,-167.15,0.00025673,2]
[313938116,1707844238001,-341.42,0.00025966,2]
[313938117,1707844238010,-1120.9215277,0.00026018,7]
[313938119,1707844238019,-48863.73431222,0.0002614,2]
[313938120,1707844238030,-552.03134812,0.0002614,2]
[313938121,1707844238045,-889.0,0.00026293,2]
[313938122,1707844238055,-269.39,0.00026351,2]
[313938123,1707844238064,-2214.35569605,0.000264,2]
[313938124,1707844238073,-737.86,0.000264,2]
[313938125,1707844238086,-300.0,0.00026468,2]
[313938126,1707844238095,-1332.35579436,0.00026767,2]
[313938127,1707844238104,-2771.73003182,0.00026854,2]
[313938128,1707844238113,-341.42,0.00026885,2]
[313938129,1707844238123,-1441.77,0.00026908,2]
[313938130,1707844238132,-210.0,0.0002693,6]
[313938131,1707844238142,-555.61,0.0002701,2]
[313938132,1707844238151,-1332.35579436,0.00027082,2]
[313938133,1707844238160,-1332.35579436,0.0002715,2]
[313938134,1707844238169,-20912.72904732,0.0002719,2]
[313938135,1707844238182,-1516.32220003,0.0002719,2]
[313938138,1707844238199,-52008.34663342,0.0002719,2]
[313938140,1707844238211,-81385.7117292,0.0002719,2]
[313938143,1707844238222,-81558.45419003,0.0002719,2]
[313938144,1707844238231,-3680.2658,0.0002729,2]
[313938145,1707844238240,-177.27,0.000273,2]
[313938146,1707844238249,-2216.32103515,0.00027388,2]
[313938147,1707844238260,-159.6500011,0.00027388,2]
[313938148,1707844238269,-156.10743605,0.00027388,2]
[313938149,1707844238278,-1000.0,0.0002739,2]
[313938151,1707844238288,-756.22,0.00027397,10]
[313938153,1707844238297,-40869.03122143,0.00027471,2]
[313938155,1707844238309,-7994.70309079,0.00027471,2]
[313938157,1707844238318,-552.03134812,0.00027471,2]
[313938158,1707844238327,-1332.35579436,0.00027487,2]
[313938159,1707844238336,-940.64151035,0.00027488,2]
[313938160,1707844238345,-263.86099787,0.00027488,2]
[313938161,1707844238354,-1530.84996415,0.00027489,2]
[313938162,1707844238363,-367.31618869,0.00027489,2]
[313938163,1707844238372,-405.80619455,0.00027489,2]
[313938164,1707844238381,-249.47711183,0.00027489,2]
[313938165,1707844238392,-1630.4638,0.00027491,2]
[313938166,1707844238401,-711.27,0.00027491,2]
[313938167,1707844238411,-18504.7801,0.00027491,2]
[313938168,1707844238421,-155.23336818,0.00027506,4]
[313938169,1707844238430,-182.21937292,0.00027507,4]
[313938170,1707844238439,-269.39,0.00027549,2]
[313938171,1707844238448,-1426.52065591,0.00027677,2]
[313938172,1707844238457,-341.42,0.00027803,2]
[313938173,1707844238466,-177.27,0.00027848,2]
[313938174,1707844238475,-1000.0,0.000279,2]
[313938175,1707844238484,-1332.35579436,0.00027904,2]
[313938176,1707844238494,-150.0,0.00027913,2]
[313938177,1707844238503,-178.0909694,0.00027919,2]
[313938178,1707844238512,-150.0,0.00027921,2]
[313938179,1707844238521,-150.0,0.00027927,2]
[313938180,1707844238530,-150.0,0.0002793,2]
[313938181,1707844238539,-150.0,0.00027932,2]
[313938182,1707844238548,-150.0,0.00027933,2]
[313938183,1707844238557,-150.0,0.00027935,2]
[313938184,1707844238566,-889.0,0.00027937,2]
[313938185,1707844238575,-150.0,0.00027942,2]
[313938186,1707844238584,-150.0,0.00027946,2]
[313938187,1707844238594,-1000.0,0.00027947,2]
[313938188,1707844238603,-150.0,0.0002795,2]
[313938189,1707844238612,-150.0,0.00027956,2]
[313938190,1707844238621,-150.0,0.00027957,2]
[313938191,1707844238630,-1500.0,0.00027957,2]
[313938192,1707844238797,-150.0,0.00027958,2]
[313938193,1707844238810,-150.0,0.0002796,2]
[313938194,1707844238820,-150.0,0.00027961,2]
[313938195,1707844238829,-150.0,0.00027962,2]
[313938196,1707844238838,-150.0,0.00027971,2]
[313938197,1707844238849,-150.0,0.00027987,2]
[313938198,1707844238858,-1332.35579436,0.00027989,2]
[313938199,1707844238867,-150.0,0.00027994,2]
[313938200,1707844238876,-150.0,0.00027995,2]
[313938201,1707844238887,-150.0,0.00027998,2]
[313938202,1707844238896,-969.07959217,0.00028,2]
[313938203,1707844238905,-1500.0,0.00028009,2]
[313938204,1707844238914,-150.0,0.00028011,2]
[313938205,1707844238923,-150.0,0.00028013,2]
[313938206,1707844238932,-150.0,0.00028019,2]
[313938207,1707844238942,-150.0,0.0002803,2]
[313938208,1707844238951,-150.0,0.00028032,2]
[313938209,1707844238961,-150.0,0.00028032,2]
[313938210,1707844238970,-150.0,0.00028035,2]
[313938211,1707844238979,-150.0,0.00028035,2]
[313938212,1707844238988,-150.0,0.00028035,2]
[313938213,1707844238997,-150.0,0.0002804,2]
[313938214,1707844239006,-150.0,0.00028041,2]
[313938215,1707844239015,-150.0,0.00028042,2]
[313938216,1707844239025,-1500.0,0.00028042,2]
[313938217,1707844239037,-150.0,0.00028043,2]
[313938218,1707844239046,-150.0,0.00028044,2]
[313938219,1707844239056,-150.0,0.00028044,2]
[313938220,1707844239065,-150.0,0.00028046,2]
[313938221,1707844239076,-151.0213,0.00028048,3]
[313938222,1707844239086,-151.0213,0.00028048,3]
[313938223,1707844239096,-151.0213,0.00028048,3]
[313938224,1707844239106,-151.0213,0.00028048,3]
[313938225,1707844239116,-151.0213,0.00028048,3]
[313938226,1707844239126,-151.0213,0.00028048,3]
[313938227,1707844239137,-151.0213,0.00028048,3]
[313938228,1707844239146,-151.0213,0.00028048,3]
[313938229,1707844239156,-151.0213,0.00028048,3]
[313938230,1707844239165,-151.0213,0.00028048,3]
[313938231,1707844239174,-151.0213,0.00028048,3]
[313938232,1707844239184,-151.0213,0.00028048,3]
[313938233,1707844239195,-151.0213,0.00028048,3]
[313938234,1707844239204,-151.0213,0.00028048,3]
[313938235,1707844239213,-151.0213,0.00028048,3]
[313938236,1707844239223,-151.0213,0.00028048,3]
[313938237,1707844239233,-151.0213,0.00028048,3]
[313938238,1707844239243,-150.0,0.00028048,2]
[313938239,1707844239252,-150.0,0.0002805,2]
[313938240,1707844239262,-150.0,0.00028053,2]
[313938241,1707844239271,-150.0,0.00028053,2]
[313938242,1707844239280,-1500.0,0.00028054,2]
[313938243,1707844239290,-150.0,0.0002806,2]
[313938244,1707844239300,-150.0,0.00028061,2]
[313938245,1707844239310,-150.0,0.00028066,2]
[313938246,1707844239319,-150.0,0.00028068,2]
[313938247,1707844239329,-200.0,0.00028073,2]
[313938248,1707844239339,-800.0,0.00028073,2]
[313938249,1707844239348,-150.0,0.00028073,2]
[313938250,1707844239358,-200.0,0.00028073,2]
[313938251,1707844239367,-800.0,0.00028074,2]
[313938252,1707844239376,-200.0,0.00028074,2]
[313938253,1707844239387,-500.0,0.00028074,2]
[313938254,1707844239396,-150.0,0.00028074,2]
[313938255,1707844239405,-150.0,0.00028074,2]
[313938256,1707844239414,-150.0,0.00028074,2]
[313938257,1707844239423,-150.0,0.00028076,2]
[313938258,1707844239433,-150.0,0.00028076,2]
[313938259,1707844239442,-150.0,0.00028082,2]
[313938260,1707844239451,-150.0,0.00028082,2]
[313938261,1707844239461,-150.0,0.00028082,2]
[313938262,1707844239470,-150.0,0.00028085,2]
[313938263,1707844239483,-150.0,0.00028092,2]
[313938264,1707844239493,-150.0,0.00028094,2]
[313938265,1707844239503,-563.3966589,0.000281,2]
[313938266,1707844239512,-150.0,0.00028101,2]
[313938267,1707844239522,-150.0,0.00028102,2]
[313938268,1707844239531,-150.0,0.00028107,2]
[313938269,1707844239541,-150.0,0.00028108,2]
[313938270,1707844239550,-1426.52065591,0.00028109,2]
[313938271,1707844239559,-150.0,0.0002811,2]
[313938272,1707844239569,-150.0,0.00028111,2]
[313938273,1707844239578,-150.0,0.00028113,2]
[313938274,1707844239587,-150.0,0.00028116,2]
[313938275,1707844239597,-150.0,0.00028117,2]
[313938276,1707844239606,-150.0,0.00028118,2]
[313938277,1707844239615,-150.0,0.00028119,2]
[313938278,1707844239624,-150.0,0.00028121,2]
[313938279,1707844239636,-159.75249794,0.00028123,2]
[313938280,1707844239645,-150.0,0.00028125,2]
[313938281,1707844239654,-150.0,0.00028125,2]
[313938282,1707844239664,-150.0,0.00028127,2]
[313938283,1707844239674,-1500.0,0.00028127,2]
[313938284,1707844239682,-150.0,0.00028129,2]
[313938285,1707844239691,-26.62196709,0.00028132,2]
[313938286,1707844239721,-123.37803291,0.00028132,2]
[313938287,1707844239730,-150.0,0.00028138,2]
[313938288,1707844239739,-150.0,0.0002814,2]
[313938289,1707844239749,-153.16539538,0.0002814,2]
[313938290,1707844239762,-150.0,0.00028141,2]
[313938291,1707844239771,-150.0,0.00028141,2]
[313938293,1707844239781,-151.0213,0.00028148,3]
[313938294,1707844239791,-151.0213,0.00028148,3]
[313938295,1707844239802,-151.0213,0.00028148,3]
[313938296,1707844239813,-151.0213,0.00028148,3]
[313938297,1707844239824,-151.0213,0.00028148,3]
[313938298,1707844239834,-151.0213,0.00028148,3]
[313938299,1707844239845,-151.0213,0.00028148,3]
[313938300,1707844239856,-151.0213,0.00028148,3]
[313938301,1707844239867,-151.0213,0.00028148,3]
[313938302,1707844239878,-151.0213,0.00028148,3]
[313938303,1707844239891,-151.0213,0.00028148,3]
[313938304,1707844239902,-151.0213,0.00028148,3]
[313938305,1707844239914,-151.0213,0.00028148,3]
[313938306,1707844239926,-151.0213,0.00028148,3]
[313938307,1707844239936,-151.0213,0.00028148,3]
[313938308,1707844239946,-11.42137395,0.00028148,3]
[313938309,1707844239960,-139.59992605,0.00028148,3]
[313938310,1707844239970,-151.0213,0.00028148,3]
[313938311,1707844239980,-151.0213,0.00028148,3]
[313938312,1707844239990,-151.0213,0.00028148,3]
[313938313,1707844240000,-151.0213,0.00028148,3]
[313938314,1707844240011,-151.0213,0.00028148,3]
[313938315,1707844240021,-151.0213,0.00028148,3]
[313938316,1707844240037,-151.0213,0.00028148,3]
[313938317,1707844240047,-151.0213,0.00028148,3]
[313938318,1707844240057,-151.0213,0.00028148,3]
[313938319,1707844240067,-151.0213,0.00028148,3]
[313938320,1707844240079,-151.0213,0.00028148,3]
[313938321,1707844240089,-151.0213,0.00028148,3]
[313938322,1707844240099,-151.0213,0.00028148,3]
[313938323,1707844240109,-151.0213,0.00028148,3]
[313938324,1707844240119,-151.0213,0.00028148,3]
[313938325,1707844240129,-151.0213,0.00028148,3]
[313938326,1707844240141,-150.0,0.00028148,2]
[313938327,1707844240150,-150.0,0.00028148,2]
[313938328,1707844240159,-150.0,0.00028149,2]
[313938329,1707844240169,-150.0,0.0002815,2]
[313938330,1707844240179,-150.0,0.00028151,2]
[313938331,1707844240189,-150.0,0.00028154,2]
[313938332,1707844240199,-150.0,0.00028156,2]
[313938333,1707844240210,-150.0,0.00028159,2]
[313938334,1707844240220,-500.0,0.00028159,2]
[313938335,1707844240230,-501.6691,0.00028159,2]
[313938336,1707844240240,-1000.0,0.00028159,2]
[313938337,1707844240250,-1000.0,0.00028159,2]
[313938338,1707844240259,-1101.0688,0.00028159,2]
[313938339,1707844240269,-500.0,0.00028159,2]
[313938340,1707844240279,-500.0,0.00028159,2]
[313938341,1707844240289,-500.0,0.00028159,2]
[313938342,1707844240298,-500.0,0.00028159,2]
[313938343,1707844240308,-500.0,0.00028159,2]
[313938344,1707844240317,-57.83336162,0.00028159,2]
[313938345,1707844240330,-442.16663838,0.00028159,2]
[313938346,1707844240340,-500.0,0.00028159,2]
[313938347,1707844240349,-552.5888,0.00028159,2]
[313938348,1707844240359,-150.0,0.00028161,2]
[313938349,1707844240368,-1500.0,0.00028163,2]
[313938350,1707844240378,-150.0,0.00028164,2]
[313938351,1707844240390,-150.0,0.00028166,2]
[313938352,1707844240400,-150.0,0.00028168,2]
[313938353,1707844240409,-150.0,0.0002817,2]
[313938354,1707844240419,-150.0,0.00028171,2]
[313938355,1707844240430,-150.0,0.00028171,2]
[313938356,1707844240440,-150.0,0.00028177,2]
[313938357,1707844240450,-150.0,0.0002818,2]
[313938358,1707844240460,-150.0,0.00028183,2]
[313938359,1707844240469,-150.0,0.00028183,2]
[313938360,1707844240478,-51.86226227,0.00028183,2]
[313938361,1707844240491,-98.13773773,0.00028183,2]
[313938362,1707844240500,-150.0,0.00028194,2]
[313938363,1707844240509,-150.0,0.00028195,2]
[313938364,1707844240519,-670.81687604,0.00028197,2]
[313938365,1707844240528,-150.0,0.00028197,2]
[313938366,1707844240537,-34160.98086408,0.000282,2]
[313938367,1707844240549,-1267.65875993,0.000282,2]
[313938368,1707844240560,-4253.57885128,0.000282,2]
[313938369,1707844240571,-295.783942,0.000282,2]
[313938370,1707844240592,-23641.19885118,0.000282,2]
[313938371,1707844240603,-343.36644218,0.000282,2]
[313938372,1707844240615,-846.249995,0.000282,2]
[313938373,1707844240627,-441.42258707,0.000282,2]
[313938374,1707844240806,-487.24,0.000282,2]
[313938375,1707844240817,-1649.68,0.000282,2]
[313938376,1707844240829,-722.243,0.000282,2]
[313938377,1707844240848,-6067.5,0.000282,2]
[313938378,1707844240870,-603.45575644,0.000282,2]
[313938379,1707844240883,-461.19698802,0.000282,2]
[313938380,1707844240901,-67128.37949664,0.000282,2]
[313938381,1707844240913,-10407.57571551,0.000282,2]
[313938382,1707844240925,-25166.03431434,0.000282,2]
[313938383,1707844240937,-1506.50744281,0.000282,2]
[313938384,1707844241239,-10185.07699352,0.000282,2]
[313938385,1707844241249,-500.0,0.000282,2]
[313938386,1707844241260,-689.44708603,0.000282,2]
[313938387,1707844241280,-358.85125374,0.000282,2]
[313938388,1707844241293,-270.29095374,0.000282,2]
[313938389,1707844241622,-1041.41070649,0.000282,2]
[313938390,1707844241633,-282.90751996,0.000282,2]
[313938391,1707844241747,-2647.52301187,0.000282,2]
[313938392,1707844241758,-150.0,0.00028253,2]
[313938393,1707844241770,-1579.86388507,0.00028296,2]
[313938394,1707844241781,-1054.05254767,0.00028296,2]
[313938395,1707844241793,-155.6658,0.00028296,2]
[313938396,1707844241805,-528.78479227,0.00028296,2]
[313938397,1707844241816,-249.44375628,0.00028296,2]
[313938398,1707844241828,-526.05562938,0.00028296,2]
[313938399,1707844241840,-264.5937254,0.00028296,2]
[313938400,1707844241859,-244.83631898,0.00028296,2]
[313938401,1707844241872,-224.38899878,0.00028296,2]
[313938402,1707844241885,-311.20696792,0.00028296,2]
[313938403,1707844241904,-5683.18456638,0.00028296,2]
[313938404,1707844241919,-59.88349416,0.00028296,2]
[313938405,1707844241931,-359.04499878,0.00028296,2]
[313938406,1707844241943,-182.27763606,0.00028296,2]
[313938407,1707844241957,-1816.12904558,0.00028296,2]
[313938408,1707844241969,-155.0,0.00028296,2]
[313938409,1707844241980,-775.39441154,0.00028296,2]
[313938410,1707844241992,-202.13886159,0.00028296,2]
[313938411,1707844242003,-1182.81798027,0.00028296,2]
[313938412,1707844242014,-4644.1804937,0.00028296,2]
[313938413,1707844242026,-2232.85795144,0.00028296,2]
[313938414,1707844242040,-293.64749083,0.00028296,2]
[313938415,1707844242052,-201.99882704,0.00028296,2]
[313938416,1707844242063,-483.42914929,0.00028296,2]
[313938417,1707844242076,-246.23794881,0.00028296,2]
[313938418,1707844242087,-191.73170434,0.00028296,2]
[313938419,1707844242098,-995.89,0.00028296,2]
[313938420,1707844242111,-517.78567072,0.00028296,2]
[313938421,1707844242122,-157.18120035,0.00028296,2]
[313938422,1707844242133,-155.47694052,0.00028296,2]
[313938423,1707844242151,-286.17157154,0.00028296,2]
[313938424,1707844242164,-227.32795143,0.00028296,2]
[313938425,1707844242176,-234.87008297,0.00028296,2]
[313938426,1707844242187,-473.54978766,0.00028296,2]
[313938427,1707844242200,-220.60720138,0.00028296,2]
[313938428,1707844242212,-1147.15292267,0.00028297,2]
[313938429,1707844242224,-1549.6865224,0.00028298,2]
[313938430,1707844242236,-1579.63535063,0.00028298,2]
[313938431,1707844242247,-156.77297195,0.00028298,2]
[313938432,1707844242258,-770.52841191,0.00028298,2]
[313938433,1707844242271,-278.73949976,0.00028298,2]
[313938434,1707844242282,-431.5020231,0.00028298,2]
[313938435,1707844242293,-698.06254983,0.00028298,2]
[313938436,1707844242304,-155.34941496,0.00028298,2]
[313938438,1707844242316,-2245.30470589,0.00028298,2]
[313938439,1707844242327,-266.05521495,0.00028298,2]
[313938440,1707844242339,-394.24298195,0.00028298,2]
[313938441,1707844242350,-251.57324471,0.00028298,2]
[313938442,1707844242360,-756.92162255,0.00028298,2]
[313938443,1707844242371,-5355.45944021,0.00028298,2]
[313938444,1707844242381,-298.27166747,0.00028298,2]
[313938445,1707844242394,-275.04808782,0.00028298,2]
[313938446,1707844242405,-3336.34917432,0.00028298,2]
[313938447,1707844242416,-458.61442053,0.00028298,2]
[313938448,1707844242426,-198.60905178,0.00028298,2]
[313938449,1707844242437,-230.02103007,0.00028298,2]
[313938450,1707844242448,-210.7249278,0.00028298,30]
[313938451,1707844242458,-170.56684723,0.00028298,2]
[313938452,1707844242470,-230.57040831,0.00028298,2]
[313938453,1707844242481,-242.25045307,0.00028298,2]
[313938454,1707844242491,-418.01197581,0.00028298,2]
[313938455,1707844242502,-158.36561926,0.00028298,2]
[313938456,1707844242512,-447.95169275,0.00028298,2]
[313938457,1707844242522,-349.68076355,0.00028298,2]
[313938458,1707844242534,-728.96,0.00028298,2]
[313938459,1707844242545,-6512.03594339,0.00028299,2]
[313938460,1707844242555,-150.01,0.00028299,2]
[313938461,1707844242566,-3314.82130757,0.00028299,2]
[313938462,1707844242576,-392.66407142,0.00028299,15]
[313938463,1707844242587,-767363.53115812,0.000283,2]
[313938464,1707844242598,-12061.9534273,0.000283,2]
[313938465,1707844242608,-15620.69271888,0.000283,2]
[313938466,1707844242617,-2000.0,0.000283,2]
[313938467,1707844242627,-200.0,0.000283,2]
[313938468,1707844242637,-2000.0,0.000283,2]
[313938469,1707844242649,-200.0,0.000283,2]
[313938470,1707844242660,-200.0,0.000283,2]
[313938471,1707844242670,-1523.459481,0.000283,2]
[313938472,1707844242680,-800.0,0.00028301,2]
[313938473,1707844242690,-8134.3968196,0.00028306,2]
[313938474,1707844242701,-3957.0618453,0.00028306,2]
[313938475,1707844242711,-97876.5505056,0.00028325,2]
[313938476,1707844242722,-344.78886258,0.00028396,2]
[313938477,1707844242731,-152.73797402,0.00028481,2]
[313938478,1707844242741,-1441.77,0.00028551,2]
[313938479,1707844242752,-1015.7477574,0.00028567,2]
[313938480,1707844242762,-757.23370835,0.00028567,2]
[313938481,1707844242771,-2000.0,0.00028583,2]
[313938482,1707844242782,-200.0,0.00028583,2]
[313938483,1707844242792,-2000.0,0.00028583,2]
[313938484,1707844242802,-200.0,0.00028583,2]
[313938485,1707844242811,-200.0,0.00028583,2]
[313938486,1707844242821,-1426.52065591,0.00028586,2]
[313938487,1707844242831,-2930.43053173,0.00028616,2]
[313938488,1707844242840,-672286.93095731,0.00028666,3]
[313938489,1707844242887,-3131.64,0.00028666,3]
[313938490,1707844243381,-150.0,0.00027904,2]
[313938491,1707844243392,-150.0,0.00027907,2]
[313938492,1707844243402,-16.59625256,0.0002792,2]
[313938493,1707844243414,-133.40374744,0.0002792,2]
[313938494,1707844243423,-150.0,0.00027928,2]
[313938495,1707844243433,-150.0,0.0002793,2]
[313938496,1707844243442,-150.0,0.0002793,2]
[313938497,1707844243452,-150.0,0.00027932,2]
[313938498,1707844243461,-150.0,0.00027935,2]
[313938499,1707844243471,-150.0,0.00027942,2]
[313938500,1707844243480,-150.0,0.00027948,2]
[313938501,1707844243490,-150.0,0.00027963,2]
[313938502,1707844243503,-150.0,0.00027963,2]
[313938503,1707844243512,-150.0,0.0002797,2]
[313938504,1707844243521,-150.0,0.00027993,2]
[313938505,1707844243530,-150.0,0.00027993,2]
[313938506,1707844243540,-150.0,0.00028005,2]
[313938507,1707844243549,-150.0,0.00028006,2]
[313938508,1707844243559,-150.0,0.00028011,2]
[313938509,1707844243569,-150.0,0.00028023,2]
[313938510,1707844243578,-150.0,0.00028023,2]
[313938511,1707844243588,-150.0,0.00028027,2]
[313938512,1707844243597,-150.0,0.00028042,2]
[313938513,1707844243607,-150.0,0.00028048,2]
[313938514,1707844243617,-150.0,0.00028048,2]
[313938515,1707844243626,-150.0,0.00028049,2]
[313938516,1707844243636,-150.0,0.0002805,2]
[313938517,1707844243649,-150.0,0.00028059,2]
[313938518,1707844243658,-150.0,0.00028062,2]
[313938519,1707844243668,-150.0,0.00028065,2]
[313938520,1707844243677,-150.0,0.00028065,2]
[313938521,1707844243687,-150.0,0.00028067,2]
[313938522,1707844243696,-150.0,0.00028091,2]
[313938523,1707844243706,-150.0,0.00028103,2]
[313938524,1707844243715,-150.0,0.00028104,2]
[313938525,1707844243725,-150.0,0.00028111,2]
[313938526,1707844243734,-150.0,0.00028111,2]
[313938527,1707844243744,-150.0,0.0002814,2]
[313938528,1707844243754,-150.0,0.00028146,2]
[313938529,1707844243764,-150.0,0.0002815,2]
[313938530,1707844243774,-150.0,0.00028152,2]
[313938531,1707844243784,-150.0,0.00028153,2]
[313938532,1707844243794,-150.0,0.00028153,2]
[313938533,1707844243805,-150.0,0.00028153,2]
[313938534,1707844243816,-150.0,0.00028154,2]
[313938535,1707844243827,-150.0,0.0002816,2]
[313938536,1707844243837,-150.0,0.00028162,2]
[313938537,1707844243848,-150.0,0.00028168,2]
[313938538,1707844243858,-150.0,0.00028169,2]
[313938539,1707844243869,-150.0,0.0002817,2]
[313938540,1707844243879,-150.0,0.00028175,2]
[313938541,1707844243890,-1870.30982072,0.00028666,3]
[313938542,1707844243917,-250.0,0.00023799,2]
[313938543,1707844243927,-47.27599253,0.00028666,3]
[313938544,1707844243940,-28150.98172027,0.00028666,3]
[313938545,1707844244046,-56798.76479059,0.00028666,3]
[313938546,1707844244056,-5000.0,0.00028667,2]
[313938547,1707844244067,-375.60551747,0.00028667,15]
[313938548,1707844244082,-1000.0,0.00028667,2]
[313938549,1707844244094,-1106.4153,0.00028667,2]
[313938550,1707844244105,-1332.35579436,0.00028682,2]
[313938551,1707844244116,-341.42,0.00028722,2]
[313938552,1707844244127,-269.39,0.00028747,2]
[313938553,1707844244137,-512.03977177,0.00028767,2]
[313938554,1707844244151,-345.85464403,0.00028767,2]
[313938555,1707844244162,-500.0,0.00028767,2]
[313938556,1707844244172,-226.77234435,0.00028767,2]
[313938557,1707844244183,-448.68680483,0.00028767,2]
[313938558,1707844244196,-358.62920343,0.00028767,2]
[313938559,1707844244207,-506.33687183,0.00028767,2]
[313938560,1707844244218,-512.96274922,0.00028767,2]
[313938561,1707844244229,-500.0,0.00028767,2]
[313938562,1707844244240,-501.65763673,0.00028767,2]
[313938563,1707844244251,-1000.9423887,0.00028767,2]
[313938564,1707844244263,-476.89668936,0.00028767,2]
[313938565,1707844244274,-528.24065208,0.00028767,2]
[313938566,1707844244285,-531.71640495,0.00028767,2]
[313938567,1707844244296,-507.97092179,0.00028767,2]
[313938568,1707844244306,-517.03320835,0.00028767,2]
[313938569,1707844244463,-558.10435834,0.00028767,2]
[313938570,1707844244498,-432.92666658,0.00028767,2]
[313938571,1707844244508,-574.08497498,0.00028767,2]
[313938572,1707844244519,-316.23099679,0.00028767,2]
[313938573,1707844244529,-614.80715465,0.00028767,2]
[313938574,1707844244538,-444.8112171,0.00028767,2]
[313938575,1707844244548,-500.0,0.00028767,2]
[313938576,1707844244557,-500.0,0.00028767,2]
[313938577,1707844244567,-324.88122371,0.00028767,2]
[313938578,1707844244576,-500.0,0.00028767,2]
[313938579,1707844244586,-634.85137791,0.00028767,2]
[313938580,1707844244595,-500.0,0.00028767,2]